{"text_format":"1","workbook":"xlsx","n_sheets":1,"sheets":["Лист1"],"not_rendered":{"charts":0,"images":0,"macros":0,"external_links":0,"defined_names":1,"comments":0,"pivot_tables":0},"unopened":[],"bounds":{"document_bytes":16777216,"sheet_cells":100000,"rows_first":2000,"rows_last":500,"rows_between":2000,"halvings":0,"cell_chars":16384,"cell_head_chars":4096},"cells_cut":0,"cells_raw":0,"read":"whole","date_system":"1900"}

{"sheet":"Лист1","index":0,"n_rows":44,"n_cols":2,"rows_kept":44,"cut":false,"hidden":false,"merged":[]}
["D:\\Dropbox\\!Сайт\\7_Библиотека\\*.*",{"$f":"INDEX(Список,ROW())","v":"101 совет по деловому письму.docx"}]
[null,{"$f":"INDEX(Список,ROW())","v":"Human Sigma.docx"}]
[null,{"$f":"INDEX(Список,ROW())","v":"ReWork.docx"}]
[null,{"$f":"INDEX(Список,ROW())","v":"ReWork_лозунг.bmp"}]
[null,{"$f":"INDEX(Список,ROW())","v":"ReWork_обл.bmp"}]
[null,{"$f":"INDEX(Список,ROW())","v":"Айн Рэнд. Источник. Обложка.bmp"}]
[null,{"$f":"INDEX(Список,ROW())","v":"Айн Рэнд. Источник.docx"}]
[null,{"$f":"INDEX(Список,ROW())","v":"Айн Рэнд.bmp"}]
[null,{"$f":"INDEX(Список,ROW())","v":"Атлант расправил плечи.docx"}]
[null,{"$f":"INDEX(Список,ROW())","v":"Атлант.bmp"}]
[null,{"$f":"INDEX(Список,ROW())","v":"Государь.docx"}]
[null,{"$f":"INDEX(Список,ROW())","v":"Действенное видение.bmp"}]
[null,{"$f":"INDEX(Список,ROW())","v":"Действенное видение.docx"}]
[null,{"$f":"INDEX(Список,ROW())","v":"ДТП в Германии.jpg"}]
[null,{"$f":"INDEX(Список,ROW())","v":"Жалоба как подарок.docx"}]
[null,{"$f":"INDEX(Список,ROW())","v":"Жалоба.bmp"}]
[null,{"$f":"INDEX(Список,ROW())","v":"Интеграция.docx"}]
[null,{"$f":"INDEX(Список,ROW())","v":"Интеграция_обл.bmp"}]
[null,{"$f":"INDEX(Список,ROW())","v":"Макиавелли-обложка.bmp"}]
[null,{"$f":"INDEX(Список,ROW())","v":"Мифы корпоративной культуры.docx"}]
[null,{"$f":"INDEX(Список,ROW())","v":"Мифы экономики. Человеческая жизнь бесценна.docx"}]
[null,{"$f":"INDEX(Список,ROW())","v":"Организация как система.docx"}]
[null,{"$f":"INDEX(Список,ROW())","v":"Правила.jpg"}]
[null,{"$f":"INDEX(Список,ROW())","v":"проект.bmp"}]
[null,{"$f":"INDEX(Список,ROW())","v":"Регулярный менеджмент. Масло масляное.docx"}]
[null,{"$f":"INDEX(Список,ROW())","v":"Результативность.bmp"}]
[null,{"$f":"INDEX(Список,ROW())","v":"Результативность.docx"}]
[null,{"$f":"INDEX(Список,ROW())","v":"Результативность_обл.jpg"}]
[null,{"$f":"INDEX(Список,ROW())","v":"Реньи_обл.bmp"}]
[null,{"$f":"INDEX(Список,ROW())","v":"Робин Стюарт-Котце. Результативность. Секреты эффективного поведения.docx"}]
[null,{"$f":"INDEX(Список,ROW())","v":"Сначала нарушьте все правила.docx"}]
[null,{"$f":"INDEX(Список,ROW())","v":"Управление проектами CCPM.docx"}]
[null,{"$f":"INDEX(Список,ROW())","v":"Управление рисками.docx"}]
[null,{"$f":"INDEX(Список,ROW())","v":"Цель.docx"}]
[null,{"$f":"INDEX(Список,ROW())","v":"Экономический образ мышления.docx"}]
[null,{"$f":"INDEX(Список,ROW())","v":"Эффект ореола.docx"}]
[null,{"$f":"INDEX(Список,ROW())","v":"Эффект ореола.jpg"}]
[null,{"$f":"INDEX(Список,ROW())","v":{"$error":"#REF!"}}]
[null,{"$f":"INDEX(Список,ROW())","v":{"$error":"#REF!"}}]
[null,{"$f":"INDEX(Список,ROW())","v":{"$error":"#REF!"}}]
[null,{"$f":"INDEX(Список,ROW())","v":{"$error":"#REF!"}}]
[null,{"$f":"INDEX(Список,ROW())","v":{"$error":"#REF!"}}]
[null,{"$f":"INDEX(Список,ROW())","v":{"$error":"#REF!"}}]
[null,{"$f":"INDEX(Список,ROW())","v":{"$error":"#REF!"}}]